bitfinex/quotes_SOLUSD_20240623
["timestamp","ask_amount","ask_price","bid_price","bid_amount"]
[1719106647021,6.49,134.92,134.87,106.49]
[1719106647225,22.1686,134.93,134.89,100.0]
[1719106647419,22.1686,134.93,134.88,6.49]
[1719106649325,22.1686,134.93,134.89,100.0]
[1719106652438,22.1686,134.93,134.88,6.49]
[1719106652745,6.49,134.91,134.87,100.0]
[1719106653414,6.49,134.9,134.87,100.0]
[1719106654333,6.49,134.89,134.85,100.0]
[1719106654522,6.49,134.88,134.84,6.49]
[1719106654715,6.49,134.88,134.83,106.49]
[1719106655333,6.49,134.88,134.83,100.0]
[1719106655719,6.49,134.88,134.83,106.49]
[1719106657040,6.3619,134.91,134.85,100.0]
[1719106657225,6.3619,134.91,134.86,6.49]
[1719106657226,12.8519,134.91,134.86,6.49]
[1719106657814,12.8519,134.91,134.85,106.49]
[1719106657815,6.49,134.9,134.85,106.49]
[1719106658015,6.49,134.88,134.83,106.49]
[1719106659535,6.49,134.88,134.83,100.0]
[1719106659750,21.564,134.88,134.83,106.49]
[1719106660536,6.49,134.87,134.83,100.0]
[1719106661713,21.564,134.88,134.83,106.49]
[1719106665234,15.074,134.88,134.85,100.0]
[1719106679428,7.4129,134.9,134.85,106.49]
[1719106679429,6.49,134.9,134.85,106.49]
[1719106679752,28.6967,134.91,134.85,106.49]
[1719106680135,36.109,134.91,134.85,106.49]
[1719106680331,36.109,134.91,134.85,100.0]
[1719106680536,13.9031,134.9,134.85,100.0]
[1719106681435,6.49,134.89,134.85,100.0]
[1719106684347,6.49,134.9,134.85,100.0]
[1719106684949,22.3348,134.91,134.87,100.0]
[1719106685136,16.1969,134.94,134.89,106.49]
[1719106685338,22.6869,134.94,134.89,106.49]
[1719106686658,22.6869,134.94,134.9,1.48020428]
[1719106687055,30.0977,134.94,134.9,1.48020428]
[1719106687455,6.49,134.93,134.9,1.48020428]
[1719106689535,6.49,134.93,134.89,100.0]
[1719106690259,16.1969,134.94,134.91,100.0]
[1719106690437,6.49,134.95,134.91,100.0]
[1719106690941,6.49,134.95,134.92,1.4277084]
[1719106691141,13.9001,134.95,134.91,100.0]
[1719106691348,6.49,134.94,134.89,106.49]
[1719106691541,6.49,134.93,134.89,100.0]
[1719106692172,7.4107,134.94,134.89,100.0]
[1719106692342,6.49,134.92,134.89,100.0]
[1719106693746,6.49,134.93,134.89,100.0]
[1719106696160,16.1969,134.97,134.91,100.0]
[1719106696161,6.49,134.94,134.91,100.0]
[1719106696384,6.49,134.94,134.89,106.49]
[1719106698569,13.9003,134.95,134.89,106.49]
[1719106698758,6.49,134.96,134.91,106.49]
[1719106698957,16.1969,134.97,134.93,100.0]
[1719106699146,13.7712964,134.98,134.95,100.0]
[1719106699147,0.8752964,134.98,134.95,100.0]
[1719106699354,0.8752964,134.98,134.95,106.49]
[1719106700565,0.8752964,134.98,134.97,100.0]
[1719106700749,0.8752964,134.98,134.97,106.49]
[1719106702547,0.8752964,134.98,134.97,100.0]
[1719106707067,0.8752964,134.98,134.97,106.49]
[1719106707456,0.8752964,134.98,134.97,106.66]
[1719106707651,0.8752964,134.98,134.97,106.83]
[1719106708050,0.8752964,134.98,134.97,106.66]
[1719106708451,0.8752964,134.98,134.97,106.49]
[1719106709054,0.8752964,134.98,134.97,206.83]
[1719106719809,0.8752964,134.98,134.97,200.34]
[1719106720503,0.8752964,134.98,134.97,206.83]
[1719106721791,0.8752964,134.98,134.97,100.0]
[1719106724986,0.8752964,134.98,134.94,100.0]
[1719106727780,0.8752964,134.98,134.94,106.49]
[1719106727983,6.3652964,134.99,134.94,106.49]
[1719106729997,7.4076,135.0,134.94,106.49]
[1719106730201,6.49,134.99,134.94,106.49]
[1719106730387,6.49,134.99,134.94,100.0]
[1719106730787,6.49,134.99,134.94,106.49]
[1719106730975,6.49,134.99,134.96,100.0]
[1719106731587,6.49,134.99,134.94,106.49]
[1719106733603,13.898,134.99,134.94,106.49]
[1719106733804,6.49,134.98,134.94,100.0]
[1719106734699,6.49,134.99,134.96,100.0]
[1719106735483,15.011,135.01,134.96,106.49]
[1719106735805,21.501,135.01,134.96,106.49]
[1719106736001,6.49,135.0,134.96,100.0]
[1719106737296,6.49,135.0,134.96,106.49]
[1719106738090,15.011,135.01,134.96,106.49]
[1719106738294,7.406,135.03,134.98,100.0]
[1719106738505,22.7923,135.04,134.98,100.0]
[1719106738813,6.49,135.03,134.98,106.49]
[1719106740081,13.8958,135.03,134.98,106.49]
[1719106741000,6.49,135.03,134.98,106.49]
[1719106743111,6.49,135.03,134.98,6.49]
[1719106743311,6.49,135.03,134.99,100.0]
[1719106743531,13.8957,135.03,134.99,100.0]
[1719106743923,24.30763844,135.07,135.01,100.0]
[1719106743924,16.1825,135.07,135.01,100.0]
[1719106744132,6.49,135.05,135.01,100.0]
[1719106751645,27.4044,135.06,135.01,100.0]
[1719106751846,6.49,135.05,135.03,100.0]
[1719106756449,6.49,135.04,134.98,121.5768]
[1719106756652,6.49,135.0,134.96,100.0]
[1719106757132,6.49,134.99,134.96,100.0]
[1719106759149,6.49,134.99,134.94,121.5768]
[1719106759342,6.49,134.99,134.94,128.0668]
[1719106759529,6.49,134.98,134.94,121.5768]
[1719106760128,7.4074,135.0,134.94,121.5768]
[1719106760451,6.49,134.98,134.94,121.5768]
[1719106762654,6.49,134.98,134.96,100.0]
[1719106762956,16.1825,135.02,134.96,100.0]
[1719106763141,23.5888,135.02,134.94,128.0668]
[1719106763331,6.49,134.99,134.94,128.0668]
[1719106764030,6.49,134.98,134.94,121.5768]
[1719106766647,6.49,134.98,134.94,100.0]
[1719106767362,6.49,134.96,134.92,100.0]
[1719106770059,6.49,134.96,134.93,0.4747227]
[1719106770263,6.49,134.97,134.93,0.4747227]
[1719106770666,6.49,134.97,134.94,100.0]
[1719106771454,6.49,134.98,134.94,100.0]
[1719106771845,6.4494,135.0,134.94,100.0]
[1719106772044,7.4069,135.01,134.94,100.0]
[1719106772045,6.49,134.98,134.94,100.0]
[1719106772742,6.49,134.97,134.94,100.0]
[1719106774343,6.49,134.97,134.92,100.0]
[1719106774554,27.4081,134.99,134.94,100.0]
[1719106774753,6.49,134.97,134.94,100.0]
[1719106776462,6.49,134.98,134.94,100.0]
[1719106776670,6.49,134.98,134.94,106.49]
[1719106777958,26.49,134.99,134.94,106.49]
[1719106778156,26.49,134.99,134.96,100.0]
[1719106781098,33.898,134.99,134.96,100.0]
[1719106781475,6.49,134.98,134.96,100.0]
[1719106788212,27.408,134.99,134.96,100.0]
[1719106788521,33.898,134.99,134.96,100.0]
[1719106790416,27.408,134.99,134.96,100.0]
[1719106790619,6.49,134.98,134.96,100.0]
[1719106790838,20.0,134.99,134.96,100.0]
[1719106791016,6.49,134.98,134.96,100.0]
[1719106791507,6.49,134.99,134.96,100.0]
[1719106792101,13.8979,134.99,134.96,100.0]
[1719106793005,6.49,134.99,134.96,100.0]
[1719106793223,7.4071,135.01,134.96,100.0]
[1719106793424,6.49,135.0,134.96,100.0]
[1719106801045,59.7048,135.06,134.98,100.0]
[1719106801046,8.79222765,135.03,134.98,100.0]
[1719106801224,22.6828,135.06,134.98,100.0]
[1719106801225,6.49,135.02,134.98,100.0]
[1719106801412,13.8964,135.02,134.98,100.0]
[1719106803455,7.4064,135.02,134.98,100.0]
[1719106803663,6.49,135.01,134.98,100.0]
[1719106804549,6.49,135.0,134.96,100.0]
[1719106805129,6.49,135.0,134.94,100.0]
[1719106805349,6.49,134.96,134.94,100.0]
[1719106805544,20.0,134.99,134.94,100.0]
[1719106805748,6.49,134.98,134.94,100.0]
[1719106806770,13.8986,134.98,134.93,22.1998]
[1719106806967,6.49,134.95,134.92,100.0]
[1719106809760,20.0,134.99,134.9,100.0]
[1719106809761,7.4099,134.96,134.9,100.0]
[1719106809984,6.49,134.94,134.9,100.0]
[1719106810474,6.49,134.93,134.9,100.0]
[1719106810873,6.49,134.93,134.87,100.0]
[1719106811065,7.4102,134.95,134.87,106.49]
[1719106811267,6.49,134.92,134.87,106.49]
[1719106811859,6.49,134.92,134.87,100.0]
[1719106812486,6.49,134.92,134.88,0.86470077]
[1719106813166,6.49,134.92,134.87,106.49]
[1719106813365,25.96,134.96,134.87,100.0]
[1719106813580,6.49,134.92,134.87,106.49]
[1719106813885,6.49,134.92,134.88,0.45093363]
[1719106814061,6.49,134.92,134.87,106.49]
[1719106814258,6.49,134.91,134.87,100.0]
[1719106815175,6.49,134.9,134.85,106.49]
[1719106815568,15.9254,134.93,134.87,100.0]
[1719106815761,6.49,134.92,134.87,106.49]
[1719106816883,6.49,134.92,134.87,100.0]
[1719106817083,6.49,134.91,134.87,100.0]
[1719106817784,6.49,134.92,134.87,106.49]
[1719106817957,6.49,134.92,134.87,100.0]
[1719106818160,6.49,134.91,134.86,6.49]
[1719106818363,6.49,134.9,134.85,106.49]
[1719106818558,23.3367,134.93,134.87,100.0]
[1719106818757,15.9254,134.93,134.87,100.0]
[1719106818953,6.49,134.91,134.87,100.0]
[1719106819485,6.49,134.92,134.87,100.0]
[1719106821057,7.4099,134.96,134.89,106.49]
[1719106821263,6.49,134.94,134.89,106.49]
[1719106821982,13.9007,134.94,134.89,6.49]
[1719106822178,6.49,134.91,134.87,100.0]
[1719106822379,6.49,134.9,134.85,106.49]
[1719106822761,6.49,134.9,134.85,100.0]
[1719106822963,6.49,134.89,134.85,100.0]
[1719106824586,7.412,134.92,134.85,106.49]
[1719106824587,6.49,134.9,134.85,106.49]
[1719106825285,6.49,134.9,134.85,100.0]
[1719106825467,6.49,134.9,134.85,106.49]
[1719106827076,6.49,134.9,134.85,100.0]
[1719106827388,6.49,134.9,134.85,106.49]
[1719106829386,6.49,134.9,134.85,100.0]
[1719106829885,6.49,134.89,134.85,100.0]
[1719106836581,6.49,134.88,134.83,116.0659]
[1719106836787,6.49,134.87,134.83,116.0659]
[1719106837984,6.49,134.87,134.83,16.0659]
[1719106838288,13.6229,134.92,134.81,106.49]
[1719106838289,6.49,134.86,134.81,106.49]
[1719106840390,6.49,134.87,134.81,106.49]
[1719106841373,6.49,134.87,134.81,100.0]
[1719106841570,6.49,134.87,134.83,100.0]
[1719106841779,6.49,134.87,134.83,106.49]
[1719106842493,6.49,134.88,134.84,0.96751266]
[1719106843573,7.4124,134.91,134.85,100.0]
[1719106843895,6.49,134.89,134.85,100.0]
[1719106844580,6.49,134.88,134.85,100.0]
[1719106845491,6.49,134.88,134.83,100.0]
[1719106845797,6.49,134.88,134.83,106.49]
[1719106846483,27.4129,134.9,134.83,106.49]
[1719106846674,6.49,134.88,134.83,106.49]
[1719106847088,6.49,134.89,134.85,100.0]
[1719106849395,23.0506,134.93,134.87,106.49]
[1719106849593,6.49,134.92,134.87,106.49]
[1719106850097,13.9018,134.92,134.87,106.49]
[1719106850691,13.9018,134.92,134.88,1.47959803]
[1719106850874,6.49,134.92,134.88,1.47959803]
[1719106852314,13.9018,134.92,134.87,100.0]
[1719106852609,6.49,134.91,134.87,100.0]
[1719106853091,6.49,134.91,134.88,16.4556]
[1719106853277,33.66800764,134.96,134.88,16.4556]
[1719106853278,7.4101,134.96,134.9,106.49]
[1719106853608,6.49,134.95,134.9,106.49]
[1719106854307,13.9001,134.95,134.9,100.0]
[1719106854884,13.9007,134.94,134.89,6.49]
[1719106855202,13.9007,134.94,134.88,122.9456]
[1719106855203,6.49,134.93,134.88,122.9456]
[1719106855374,6.49,134.94,134.89,6.49]
[1719106855576,18.5238,134.97,134.88,122.9456]
[1719106855795,6.49,134.93,134.88,122.9456]
[1719106855973,6.49,134.93,134.9,100.0]
[1719106856176,7.4097,134.96,134.9,100.0]
[1719106856377,26.49,134.95,134.9,106.49]
[1719106856587,20.0,134.95,134.9,106.49]
[1719106856888,26.49,134.95,134.9,106.49]
[1719106858574,15.3386,134.98,134.92,100.0]
[1719106858783,6.49,134.97,134.92,100.0]
[1719106858982,6.49,134.97,134.93,1.47977998]
[1719106859378,13.899,134.97,134.93,1.47977998]
[1719106860497,6.49,134.96,134.92,100.0]
[1719106861521,6.49,134.95,134.92,100.0]
[1719106862714,6.49,134.97,134.92,100.0]
[1719106862884,7.4087,134.98,134.92,100.0]
[1719106863086,6.49,134.97,134.92,100.0]
[1719106866206,13.899,134.97,134.92,100.0]
[1719106866605,6.49,134.96,134.92,100.0]
[1719106868196,6.49,134.96,134.91,6.49]
[1719106869703,24.45672569,135.0,134.9,106.0146]
[1719106869901,6.49,134.93,134.88,122.9456]
[1719106870107,6.49,134.92,134.88,116.4556]
[1719106875208,25.96,134.96,134.86,106.4688]
[1719106875419,6.49,134.89,134.86,100.0]
[1719106880114,7.4123,134.91,134.86,100.0]
[1719106880287,6.49,134.89,134.86,100.0]
[1719106883936,7.4123,134.91,134.86,100.0]
[1719106884115,6.49,134.89,134.86,100.0]
[1719106887199,36.0076,134.93,134.84,15.6194]
[1719106887527,6.49,134.86,134.83,6.4688]
[1719106887822,6.49,134.87,134.84,100.0]
[1719106888007,7.4131,134.9,134.84,100.0]
[1719106888211,6.49,134.88,134.84,100.0]
[1719106888612,7.4125,134.91,134.84,100.0]
[1719106888807,6.49,134.88,134.84,100.0]
[1719106890225,7.5829,134.9,134.84,100.0]
[1719106890523,6.49,134.88,134.84,100.0]
[1719106899638,6.49,134.88,134.83,6.4688]
[1719106899836,13.9045,134.87,134.83,6.4688]
[1719106900015,6.49,134.86,134.81,15.6251]
[1719106900206,6.49,134.85,134.81,15.6251]
[1719106900533,6.49,134.84,134.81,15.6251]
[1719106901540,6.49,134.84,134.8,106.1354]
[1719106902250,6.49,134.85,134.8,112.6254]
[1719106905131,6.49,134.85,134.8,106.1354]
[1719106905329,6.49,134.84,134.8,6.1354]
[1719106905504,6.49,134.83,134.8,6.1354]
[1719106905712,6.49,134.83,134.78,115.0861]
[1719106906119,7.4157,134.85,134.78,115.0861]
[1719106906421,6.49,134.83,134.78,115.0861]
[1719106907415,6.49,134.83,134.78,121.5761]
[1719106907935,6.49,134.83,134.78,115.0861]
[1719106908137,6.49,134.83,134.78,121.5761]
[1719106910432,6.49,134.83,134.78,115.0861]
[1719106913618,6.49,134.82,134.78,115.0861]
[1719106916243,6.49,134.83,134.78,115.0861]
[1719106916412,6.49,134.82,134.78,100.0]
[1719106916737,6.49,134.82,134.77,6.0086]
[1719106917059,6.49,134.81,134.77,6.0086]
[1719106917232,6.49,134.8,134.74,115.0861]
[1719106917419,6.49,134.8,134.75,6.49]
[1719106918716,6.49,134.79,134.74,121.5761]
[1719106919252,6.49,134.8,134.75,6.49]
[1719106919619,6.49,134.82,134.76,106.49]
[1719106919820,6.49,134.82,134.77,6.49]
[1719106920018,6.49,134.83,134.77,6.49]
[1719106921029,6.49,134.82,134.77,6.49]
[1719106924253,36.6029,134.84,134.78,100.0]
[1719106924424,16.6029,134.84,134.79,6.49]
[1719106924754,23.0929,134.84,134.79,6.49]
[1719106928944,6.0763,134.86,134.81,100.0]
[1719106929245,16.022,134.88,134.81,106.49]
[1719106929561,6.49,134.85,134.81,100.0]
[1719106930351,6.49,134.85,134.81,106.49]
[1719106930557,20.0,134.87,134.81,106.49]
[1719106930861,6.49,134.87,134.82,6.49]
[1719106931371,6.4948,134.9,134.84,6.49]
[1719106931571,6.49,134.9,134.85,100.0]
[1719106932032,6.49,134.9,134.85,106.49]
[1719106932429,6.49,134.9,134.86,0.97216203]
[1719106932727,13.903,134.9,134.86,0.97216203]
[1719106932938,13.903,134.9,134.85,100.0]
[1719106933141,6.49,134.89,134.85,100.0]
[1719106934842,6.49,134.9,134.85,106.49]
[1719106935264,6.49,134.89,134.85,100.0]
[1719106936267,23.4344,134.91,134.85,100.0]
[1719106936449,6.49,134.9,134.85,100.0]
[1719106936767,6.49,134.89,134.85,100.0]
[1719106936953,13.9034,134.89,134.84,6.49]
[1719106937155,6.49,134.88,134.83,106.49]
[1719106939669,6.49,134.86,134.83,100.0]
[1719106941553,6.49,134.86,134.81,106.49]
[1719106947581,6.49,134.85,134.79,116.2246]
[1719106947879,6.49,134.84,134.79,122.7146]
[1719106949056,6.49,134.85,134.8,6.49]
[1719106949464,6.49,134.86,134.8,6.49]
[1719106950676,6.49,134.85,134.8,6.49]
[1719106950977,6.49,134.85,134.79,122.7146]
[1719106952375,6.49,134.85,134.79,106.49]
[1719106954367,6.49,134.84,134.79,106.49]
[1719106956461,6.49,134.85,134.8,6.49]
[1719106957478,6.49,134.85,134.79,106.49]
[1719106958063,6.49,134.85,134.8,1.20992079]
[1719106961560,6.49,134.85,134.8,7.69992079]
[1719106962184,15.4393,134.87,134.82,6.49]
[1719106962390,20.0,134.86,134.82,6.49]
[1719106962884,33.9052,134.86,134.8,6.49]
[1719106963298,6.49,134.85,134.8,6.49]
[1719106963465,6.49,134.85,134.79,106.49]
[1719106965292,13.9056,134.85,134.79,106.49]
[1719106965492,6.49,134.84,134.79,106.49]
[1719106967581,26.49,134.86,134.81,106.49]
[1719106968890,33.9051,134.86,134.81,106.49]
[1719106971190,7.4157,134.85,134.81,106.49]
[1719106971879,7.4157,134.85,134.82,1.48105752]
[1719106973302,27.4153,134.86,134.82,1.48105752]
[1719106973595,7.4153,134.86,134.82,6.49]
[1719106975492,22.8539,134.87,134.83,100.0]
[1719106975702,15.4393,134.87,134.83,100.0]
[1719106976577,15.4393,134.87,134.83,106.49]
[1719106976992,7.4142,134.88,134.84,6.49]
[1719106977184,13.9037,134.89,134.84,6.49]
[1719106977680,7.4137,134.89,134.84,6.49]
[1719106977878,13.9037,134.89,134.84,6.49]
[1719106978502,7.414,134.88,134.84,6.49]
[1719106979100,13.9036,134.89,134.84,6.49]
[1719106979699,254.0,134.92,134.87,100.0]
[1719106979916,261.4121,134.92,134.87,106.49]
[1719106980202,267.9021,134.92,134.87,106.49]
[1719106980377,261.4121,134.92,134.87,106.49]
[1719106980575,267.9021,134.92,134.87,106.49]
[1719106981580,267.9021,134.92,134.87,100.0]
[1719106983305,267.9021,134.92,134.87,106.49]
[1719106983499,260.49,134.92,134.87,106.49]
[1719106987414,6.49,134.91,134.87,100.0]
[1719106988186,6.49,134.91,134.86,6.49]
[1719106988386,13.9034,134.89,134.85,100.0]
[1719106988611,6.49,134.88,134.83,106.49]
[1719106988800,6.49,134.87,134.83,100.0]
[1719106989499,6.49,134.88,134.83,106.49]
[1719106991294,22.7497,134.9,134.83,106.49]
[1719106991490,6.49,134.88,134.83,106.49]
[1719106992513,6.49,134.89,134.83,106.49]
[1719106993114,7.4126,134.91,134.86,100.0]
[1719106993295,268.23288875,134.92,134.86,100.0]
[1719106993296,6.49,134.9,134.86,100.0]
[1719106997414,7.4119,134.92,134.86,100.0]
[1719106997590,26.49,134.91,134.86,106.49]
[1719106999592,6.49,134.89,134.84,100.0]
[1719106999915,6.49,134.88,134.84,100.0]
[1719107000115,13.9041,134.88,134.84,100.0]
[1719107000310,6.49,134.87,134.82,100.0]
[1719107000500,6.49,134.86,134.82,100.0]
[1719107001631,6.49,134.88,134.84,100.0]
[1719107002925,6.49,134.88,134.83,6.49]
[1719107003232,6.49,134.88,134.82,106.49]
[1719107007594,6.49,134.87,134.82,106.49]
[1719107010209,6.49,134.87,134.82,100.0]
[1719107010519,6.49,134.86,134.82,100.0]
[1719107012204,6.49,134.87,134.82,106.49]
[1719107021510,7.413,134.9,134.82,106.49]
[1719107021710,6.49,134.87,134.82,106.49]
[1719107023330,6.49,134.87,134.84,100.0]
[1719107023533,6.49,134.89,134.84,100.0]
[1719107023826,6.49,134.89,134.84,106.49]
[1719107025833,6.49,134.89,134.84,100.0]
[1719107028513,13.9034,134.89,134.84,100.0]
[1719107029828,6.49,134.89,134.84,100.0]
[1719107030038,7.414,134.88,134.84,100.0]
[1719107030541,13.9037,134.89,134.84,100.0]
[1719107030731,7.413,134.9,134.84,106.49]
[1719107030918,20.0,134.89,134.84,106.49]
[1719107031340,20.0,134.89,134.86,100.0]
[1719107031728,20.0,134.89,134.86,106.49]
[1719107032038,20.0,134.89,134.86,100.0]
[1719107033222,13.903,134.9,134.86,100.0]
[1719107033437,13.9023,134.92,134.86,106.49]
[1719107036128,13.9023,134.92,134.87,6.49]
[1719107039340,13.9032,134.9,134.86,100.0]
[1719107042152,6.49,134.9,134.86,100.0]
[1719107042334,6.49,134.87,134.84,100.0]
[1719107043539,6.49,134.86,134.83,21.6071]
[1719107043751,6.49,134.86,134.8,100.0]
[1719107043752,6.49,134.84,134.8,100.0]
[1719107046063,6.49,134.85,134.8,106.49]
[1719107048334,6.49,134.85,134.8,100.0]
[1719107048533,6.49,134.84,134.8,100.0]
[1719107055366,6.49,134.83,134.78,100.0]
[1719107055546,6.49,134.82,134.78,100.0]
[1719107057242,6.6365,134.87,134.8,100.0]
[1719107057456,6.49,134.87,134.8,122.3714]
[1719107057669,6.49,134.87,134.82,6.49]
[1719107057976,6.49,134.86,134.8,122.3714]
[1719107058265,6.49,134.86,134.8,128.8614]
[1719107058561,6.49,134.85,134.8,128.8614]
[1719107058766,7.4141,134.88,134.8,128.8614]
[1719107059060,6.49,134.86,134.8,128.8614]
[1719107059762,6.49,134.86,134.81,6.49]
[1719107059965,6.49,134.87,134.81,6.49]
[1719107060265,7.4141,134.88,134.81,6.49]
[1719107060462,6.49,134.87,134.82,100.0]
[1719107064844,7.4141,134.88,134.82,100.0]
[1719107065048,7.4141,134.88,134.82,106.49]
[1719107065049,6.49,134.87,134.82,106.49]
[1719107066706,13.9045,134.87,134.82,106.49]
[1719107066966,13.9052,134.86,134.82,100.0]
[1719107068667,6.49,134.86,134.82,100.0]
[1719107076077,6.49,134.87,134.82,106.49]
[1719107081086,7.4136,134.89,134.84,100.0]
[1719107081252,6.49,134.88,134.84,100.0]
[1719107083370,13.904,134.88,134.84,100.0]
[1719107083576,6.49,134.87,134.84,100.0]
[1719107084271,6.49,134.86,134.82,100.0]
[1719107089682,6.49,134.87,134.82,100.0]
[1719107092773,6.49,134.86,134.82,100.0]
[1719107092978,16.4119,134.88,134.78,100.0]
[1719107093276,6.49,134.83,134.78,100.0]
[1719107095057,6.49,134.83,134.8,100.0]
[1719107095260,6.49,134.85,134.8,100.0]
[1719107099872,16.52320057,134.87,134.8,106.49]
[1719107100075,6.49,134.86,134.81,6.49]
[1719107100284,6.49,134.86,134.8,128.5613]
[1719107100767,6.49,134.86,134.81,6.49]
[1719107103603,13.9051,134.86,134.81,6.49]
[1719107103790,13.9051,134.86,134.76,100.0]
[1719107103791,6.49,134.82,134.78,100.0]
[1719107103988,7.417,134.83,134.78,100.0]
[1719107103989,6.49,134.81,134.78,100.0]
[1719107104194,6.49,134.8,134.78,100.0]
[1719107104624,6.49,134.8,134.76,22.108]
[1719107108212,15.04614801,134.85,134.77,100.0]
[1719107108381,20.0,134.84,134.79,6.49]
[1719107108583,6.49,134.84,134.79,106.49]
[1719107110510,6.49,134.83,134.79,100.0]
[1719107110921,7.4152,134.86,134.79,100.0]
[1719107111209,6.49,134.84,134.79,100.0]
[1719107111512,6.49,134.84,134.79,106.49]
[1719107112010,0.17,134.87,134.77,100.0]
[1719107112201,6.49,134.82,134.77,100.0]
[1719107112511,6.49,134.81,134.77,100.0]
[1719107114403,6.49,134.81,134.76,28.598]
[1719107115290,6.49,134.8,134.76,22.108]
[1719107116519,6.49,134.81,134.76,22.108]
[1719107116691,6.49,134.81,134.76,28.598]
[1719107121530,35.7199,134.87,134.78,100.0]
[1719107121701,6.49,134.84,134.79,6.49]
[1719107123719,13.9062,134.84,134.79,6.49]
[1719107125221,6.49,134.84,134.8,100.0]
[1719107125606,7.4153,134.86,134.8,106.49]
[1719107125802,6.49,134.85,134.8,106.49]
[1719107129835,6.49,134.84,134.78,100.0]
[1719107130006,6.49,134.84,134.78,106.49]
[1719107130202,13.9062,134.84,134.78,106.49]
[1719107130403,6.49,134.84,134.8,100.0]
[1719107132732,6.49,134.83,134.78,106.49]
[1719107133229,6.49,134.82,134.78,100.0]
[1719107135410,6.49,134.81,134.78,100.0]
[1719107136243,6.49,134.83,134.78,106.49]
[1719107136608,7.4151,134.86,134.79,6.49]
[1719107136807,6.49,134.84,134.79,6.49]
[1719107139126,6.49,134.84,134.8,100.0]
[1719107139341,6.49,134.85,134.8,100.0]
[1719107139543,6.49,134.85,134.8,106.49]
[1719107140541,16.18100458,134.86,134.82,100.0]
[1719107140744,6.49,134.85,134.82,100.0]
[1719107141622,13.9052,134.86,134.82,100.0]
[1719107142454,7.4144,134.88,134.84,100.0]
[1719107142648,13.9044,134.88,134.84,100.0]